[Event "*** Titled Tuesday Blitz"]
[Site "Chess.com"]
[Date "2021.04.06"]
[Round "8"]
[White "PavelShkapenko"]
[Black "eldur16"]
[Result "0-1"]
[WhiteElo "2713"]
[BlackElo "2594"]
[TimeControl "180+1"]
[EndTime "11:30:04 PDT"]
[Termination "eldur16 won by resignation"]

1. e4 {[%clk 0:03:00.9]} 1... Nf6 {[%clk 0:02:59.9]} 2. e5 {[%clk 0:02:59.4]}
2... Nd5 {[%clk 0:02:59.9]} 3. c4 {[%clk 0:03:00.3]} 3... Nb6 {[%clk 0:02:58.9]}
4. c5 {[%clk 0:03:00.9]} 4... Nd5 {[%clk 0:02:58.5]} 5. Bc4 {[%clk 0:03:01.5]}
5... e6 {[%clk 0:02:56]} 6. d4 {[%clk 0:03:01.4]} 6... b6 {[%clk 0:02:51.6]} 7.
cxb6 {[%clk 0:02:53.3]} 7... axb6 {[%clk 0:02:48.9]} 8. Ne2 {[%clk 0:02:53.5]}
8... Bb7 {[%clk 0:02:42.9]} 9. O-O {[%clk 0:02:53]} 9... Be7 {[%clk 0:02:42.3]}
10. Nbc3 {[%clk 0:02:52.7]} 10... Nxc3 {[%clk 0:02:39.7]} 11. bxc3 {[%clk
0:02:52.7]} 11... O-O {[%clk 0:02:36.7]} 12. Ng3 {[%clk 0:02:52.9]} 12... d6
{[%clk 0:02:34.2]} 13. f4 {[%clk 0:02:52.5]} 13... Nd7 {[%clk 0:02:23.2]} 14.
Qg4 {[%clk 0:02:38]} 14... Kh8 {[%clk 0:02:21.1]} 15. Be3 {[%clk 0:02:08.5]}
15... c5 {[%clk 0:02:17.9]} 16. f5 {[%clk 0:02:03.8]} 16... dxe5 {[%clk
0:02:10.6]} 17. fxe6 {[%clk 0:02:01.6]} 17... Nf6 {[%clk 0:02:09.4]} 18. Qh3
{[%clk 0:02:00.2]} 18... cxd4 {[%clk 0:02:06.7]} 19. cxd4 {[%clk 0:01:57.7]}
19... exd4 {[%clk 0:02:05.3]} 20. Rad1 {[%clk 0:01:55.2]} 20... fxe6 {[%clk
0:01:53.1]} 21. Bxd4 {[%clk 0:01:52.6]} 21... Qc7 {[%clk 0:01:50.3]} 22. Bd3
{[%clk 0:01:46.1]} 22... Bc5 {[%clk 0:01:40.4]} 23. Bxc5 {[%clk 0:01:45.1]}
23... Qxc5+ {[%clk 0:01:39.2]} 24. Kh1 {[%clk 0:01:45.3]} 24... h6 {[%clk
0:01:37.6]} 25. Qxe6 {[%clk 0:01:41.3]} 25... Qd5 {[%clk 0:01:34.9]} 26. Qxd5
{[%clk 0:01:39]} 26... Bxd5 {[%clk 0:01:34.4]} 27. Rb1 {[%clk 0:01:12.3]} 27...
Rxa2 {[%clk 0:01:32.2]} 28. Be4 {[%clk 0:01:12.7]} 28... Re8 {[%clk 0:01:09.7]}
29. Bxd5 {[%clk 0:01:06.2]} 29... Nxd5 {[%clk 0:01:09.1]} 30. Rb5 {[%clk
0:00:57.4]} 30... Ra5 {[%clk 0:01:02.2]} 31. Rb3 {[%clk 0:00:50.8]} 31... b5
{[%clk 0:01:00]} 32. h3 {[%clk 0:00:41.8]} 32... b4 {[%clk 0:00:59]} 33. Rf5
{[%clk 0:00:38]} 33... Ra3 {[%clk 0:00:41.3]} 34. Rb2 {[%clk 0:00:33]} 34...
Rxg3 {[%clk 0:00:35.4]} 35. Rxd5 {[%clk 0:00:32.5]} 35... Rb8 {[%clk 0:00:35.2]}
36. Rd4 {[%clk 0:00:27.1]} 36... b3 {[%clk 0:00:35.1]} 37. Kh2 {[%clk
0:00:26.9]} 37... Rc3 {[%clk 0:00:34.9]} 38. Rdd2 {[%clk 0:00:26.5]} 38... Kh7
{[%clk 0:00:33.9]} 39. Kg1 {[%clk 0:00:26.4]} 39... Rbc8 {[%clk 0:00:32.9]} 40.
Kf2 {[%clk 0:00:26.5]} 40... Rc2 {[%clk 0:00:31.8]} 41. Ke2 {[%clk 0:00:26.7]}
41... Rxb2 {[%clk 0:00:29.6]} 42. Rxb2 {[%clk 0:00:26.1]} 42... Rc3 {[%clk
0:00:29.5]} 43. Kd2 {[%clk 0:00:25.1]} 43... Rg3 {[%clk 0:00:29.3]} 44. Kc1
{[%clk 0:00:24.2]} 44... Kg6 {[%clk 0:00:28.2]} 45. Rf2 {[%clk 0:00:24]} 45...
Kg5 {[%clk 0:00:22.3]} 46. Kb2 {[%clk 0:00:22.5]} 46... Rd3 {[%clk 0:00:22]} 47.
Re2 {[%clk 0:00:18.3]} 47... g6 {[%clk 0:00:21.6]} 48. Re4 {[%clk 0:00:16.3]}
48... h5 {[%clk 0:00:20.4]} 49. Re2 {[%clk 0:00:14.8]} 49... Kf4 {[%clk
0:00:19.3]} 50. Re6 {[%clk 0:00:12]} 50... g5 {[%clk 0:00:19]} 51. Rg6 {[%clk
0:00:10.2]} 51... g4 {[%clk 0:00:18.4]} 52. hxg4 {[%clk 0:00:09.8]} 52... hxg4
{[%clk 0:00:18.3]} 53. Kc1 {[%clk 0:00:10.2]} 53... Kg3 {[%clk 0:00:18.1]} 54.
Rg5 {[%clk 0:00:09.9]} 54... Rd4 {[%clk 0:00:17.9]} 55. Kb2 {[%clk 0:00:10]}
55... Kxg2 {[%clk 0:00:17.5]} 56. Kc3 {[%clk 0:00:10.5]} 56... Rf4 {[%clk
0:00:14.4]} 57. Kxb3 {[%clk 0:00:10.5]} 57... g3 {[%clk 0:00:14.5]} 58. Kc3
{[%clk 0:00:10.8]} 58... Kf2 {[%clk 0:00:14.6]} 59. Kd3 {[%clk 0:00:10.8]} 59...
g2 {[%clk 0:00:14.7]} 0-1

[Event "*** Titled Tuesday Blitz"]
[Site "Chess.com"]
[Date "2021.04.06"]
[Round "8"]
[White "Bodnar_Mykola"]
[Black "Kostya_Nikologorskiy"]
[Result "0-1"]
[WhiteElo "2514"]
[BlackElo "2689"]
[TimeControl "180+1"]
[EndTime "11:30:04 PDT"]
[Termination "Kostya_Nikologorskiy won by resignation"]

1. d4 {[%clk 0:03:00.9]} 1... d5 {[%clk 0:02:59.4]} 2. c4 {[%clk 0:03:01]} 2...
dxc4 {[%clk 0:03:00.3]} 3. Nf3 {[%clk 0:02:58.9]} 3... c5 {[%clk 0:03:00.5]} 4.
d5 {[%clk 0:02:57.3]} 4... Nf6 {[%clk 0:02:57.9]} 5. Nc3 {[%clk 0:02:56.6]} 5...
e6 {[%clk 0:02:58.6]} 6. e4 {[%clk 0:02:55.7]} 6... exd5 {[%clk 0:02:58.7]} 7.
e5 {[%clk 0:02:55.1]} 7... d4 {[%clk 0:02:09]} 8. Bxc4 {[%clk 0:02:31.8]} 8...
Ng4 {[%clk 0:01:35]} 9. h3 {[%clk 0:02:18.7]} 9... Nc6 {[%clk 0:01:30]} 10. hxg4
{[%clk 0:01:44.7]} 10... dxc3 {[%clk 0:01:29.7]} 11. Qb3 {[%clk 0:01:45]} 11...
Qc7 {[%clk 0:01:21.1]} 12. Qxc3 {[%clk 0:01:24.9]} 12... Bxg4 {[%clk 0:01:18.8]}
13. Bf4 {[%clk 0:01:12.1]} 13... O-O-O {[%clk 0:01:14.9]} 14. Ng5 {[%clk
0:01:05.2]} 14... Rd7 {[%clk 0:00:37.9]} 15. e6 {[%clk 0:00:51.7]} 15... Rd1+
{[%clk 0:00:29.3]} 16. Rxd1 {[%clk 0:00:50.4]} 16... Qxf4 {[%clk 0:00:28.5]} 17.
Nxf7 {[%clk 0:00:48.4]} 17... Qe4+ {[%clk 0:00:28.7]} 18. Qe3 {[%clk 0:00:39.3]}
18... Qxc4 {[%clk 0:00:28.1]} 19. e7 {[%clk 0:00:39.8]} 19... Bxe7 {[%clk
0:00:25.3]} 20. Qxe7 {[%clk 0:00:39.9]} 20... Nxe7 {[%clk 0:00:23.7]} 21. Nd6+
{[%clk 0:00:40]} 21... Kc7 {[%clk 0:00:17.2]} 22. Nxc4 {[%clk 0:00:40.4]} 22...
Bxd1 {[%clk 0:00:17.9]} 23. Kxd1 {[%clk 0:00:41]} 23... h6 {[%clk 0:00:18]} 24.
Re1 {[%clk 0:00:39.9]} 24... Rd8+ {[%clk 0:00:18]} 25. Kc2 {[%clk 0:00:40]}
25... Nc6 {[%clk 0:00:17.9]} 26. Kc3 {[%clk 0:00:39.4]} 26... a5 {[%clk
0:00:15.3]} 27. Re6 {[%clk 0:00:32.7]} 27... b5 {[%clk 0:00:14.8]} 28. Ne3
{[%clk 0:00:33.1]} 28... Nb4 {[%clk 0:00:14.7]} 29. Re7+ {[%clk 0:00:29.2]}
29... Kb6 {[%clk 0:00:14.3]} 30. Re6+ {[%clk 0:00:25.3]} 30... Nc6 {[%clk
0:00:14.6]} 31. b3 {[%clk 0:00:18.9]} 31... b4+ {[%clk 0:00:14.1]} 32. Kc2
{[%clk 0:00:18]} 32... a4 {[%clk 0:00:14.4]} 33. Rg6 {[%clk 0:00:16.6]} 33... a3
{[%clk 0:00:13.1]} 34. Nc4+ {[%clk 0:00:16.3]} 34... Kb5 {[%clk 0:00:09.3]} 35.
Nd6+ {[%clk 0:00:16.6]} 35... Kb6 {[%clk 0:00:07.6]} 36. Nc4+ {[%clk 0:00:13.7]}
36... Kc7 {[%clk 0:00:07.6]} 37. Rxg7+ {[%clk 0:00:13.5]} 37... Rd7 {[%clk
0:00:08.2]} 38. Rxd7+ {[%clk 0:00:10.3]} 38... Kxd7 {[%clk 0:00:09.1]} 39. Kd3
{[%clk 0:00:10.8]} 39... Ke6 {[%clk 0:00:08.7]} 40. g4 {[%clk 0:00:10]} 40...
Nd4 {[%clk 0:00:07.6]} 41. Ne3 {[%clk 0:00:05.8]} 41... Ke5 {[%clk 0:00:05.7]}
42. Kc4 {[%clk 0:00:05.7]} 42... Ke4 {[%clk 0:00:02.3]} 43. Kxc5 {[%clk
0:00:04.9]} 43... Nxb3+ {[%clk 0:00:02.8]} 44. axb3 {[%clk 0:00:05.1]} 44... Kd3
{[%clk 0:00:03.4]} 45. Nc4 {[%clk 0:00:02.6]} 45... a2 {[%clk 0:00:03.9]} 46.
Kxb4 {[%clk 0:00:03.1]} 46... a1=Q {[%clk 0:00:04]} 47. f4 {[%clk 0:00:03.5]}
47... Qc3+ {[%clk 0:00:04.6]} 48. Ka4 {[%clk 0:00:03.5]} 48... Kd4 {[%clk
0:00:04.5]} 49. f5 {[%clk 0:00:03.2]} 49... Qa1+ {[%clk 0:00:05.4]} 50. Kb5
{[%clk 0:00:03.4]} 50... Qb1 {[%clk 0:00:04.6]} 51. Na5 {[%clk 0:00:03.7]} 51...
Qd3+ {[%clk 0:00:04.5]} 52. Kb4 {[%clk 0:00:03.9]} 52... Qf3 {[%clk 0:00:05.1]}
53. Nc6+ {[%clk 0:00:03.7]} 53... Qxc6 {[%clk 0:00:05.3]} 0-1

[Event "*** Titled Tuesday Blitz"]
[Site "Chess.com"]
[Date "2021.04.06"]
[Round "8"]
[White "Boorchess"]
[Black "Mazanchenko_Dmitry"]
[Result "0-1"]
[WhiteElo "2527"]
[BlackElo "2243"]
[TimeControl "180+1"]
[EndTime "11:30:05 PDT"]
[Termination "Mazanchenko_Dmitry won on time"]

1. Nf3 {[%clk 0:02:42.6]} 1... g6 {[%clk 0:02:59.5]} 2. d4 {[%clk 0:02:42.1]}
2... Bg7 {[%clk 0:03:00.4]} 3. Bf4 {[%clk 0:02:42.1]} 3... d6 {[%clk 0:03:00.7]}
4. e3 {[%clk 0:02:42.4]} 4... Nd7 {[%clk 0:03:00.7]} 5. h3 {[%clk 0:02:42.5]}
5... h6 {[%clk 0:03:00.9]} 6. Bh2 {[%clk 0:02:42.4]} 6... c6 {[%clk 0:03:00.4]}
7. c4 {[%clk 0:02:41.5]} 7... e5 {[%clk 0:03:00.5]} 8. Nc3 {[%clk 0:02:41]} 8...
Ne7 {[%clk 0:02:57.7]} 9. g4 {[%clk 0:02:35.4]} 9... O-O {[%clk 0:02:53.7]} 10.
Rg1 {[%clk 0:02:34.8]} 10... Kh8 {[%clk 0:02:50.9]} 11. Qb3 {[%clk 0:02:29.3]}
11... f5 {[%clk 0:02:49.7]} 12. g5 {[%clk 0:02:26.1]} 12... f4 {[%clk
0:02:32.1]} 13. gxh6 {[%clk 0:02:22.9]} 13... Bxh6 {[%clk 0:02:33]} 14. e4
{[%clk 0:02:17.7]} 14... exd4 {[%clk 0:02:19.2]} 15. Nxd4 {[%clk 0:02:16.8]}
15... Ne5 {[%clk 0:02:19.2]} 16. O-O-O {[%clk 0:02:05.8]} 16... Qb6 {[%clk
0:02:10.5]} 17. Kb1 {[%clk 0:02:00.6]} 17... Qxb3 {[%clk 0:01:28.9]} 18. axb3
{[%clk 0:01:56.5]} 18... Kh7 {[%clk 0:01:13.1]} 19. Bg2 {[%clk 0:01:51.7]} 19...
g5 {[%clk 0:00:42.1]} 20. f3 {[%clk 0:01:25.1]} 20... Bg7 {[%clk 0:00:38.2]} 21.
Nde2 {[%clk 0:01:12]} 21... Rf6 {[%clk 0:00:35.3]} 22. Rh1 {[%clk 0:01:07.8]}
22... N7g6 {[%clk 0:00:30.8]} 23. h4 {[%clk 0:00:58.9]} 23... Nxh4 {[%clk
0:00:30.3]} 24. Bxf4 {[%clk 0:00:58.2]} 24... Kg6 {[%clk 0:00:28.3]} 25. Bxe5
{[%clk 0:00:51]} 25... dxe5 {[%clk 0:00:29.2]} 26. Rhg1 {[%clk 0:00:50.9]} 26...
Nxg2 {[%clk 0:00:25.1]} 27. Rxg2 {[%clk 0:00:51.2]} 27... Rxf3 {[%clk
0:00:24.1]} 28. Rd8 {[%clk 0:00:43]} 28... Rf8 {[%clk 0:00:20.7]} 29. Rd6+
{[%clk 0:00:40.6]} 29... Rf6 {[%clk 0:00:19.5]} 30. Rd8 {[%clk 0:00:40.3]} 30...
Rf8 {[%clk 0:00:18.9]} 31. Rd6+ {[%clk 0:00:40]} 31... Bf6 {[%clk 0:00:15.9]}
32. Ng3 {[%clk 0:00:32.3]} 32... Bh3 {[%clk 0:00:15.7]} 33. Rh2 {[%clk
0:00:30.4]} 33... g4 {[%clk 0:00:16]} 34. Rf2 {[%clk 0:00:26.3]} 34... Rad8
{[%clk 0:00:15.7]} 35. Rfxf6+ {[%clk 0:00:24.8]} 35... Rxf6 {[%clk 0:00:16.6]}
36. Rxd8 {[%clk 0:00:24.4]} 36... Rf3 {[%clk 0:00:17.3]} 37. Nf5 {[%clk
0:00:23.7]} 37... Kg5 {[%clk 0:00:13.3]} 38. Rg8+ {[%clk 0:00:21.5]} 38... Kf4
{[%clk 0:00:13.3]} 39. Ne2+ {[%clk 0:00:14.2]} 39... Kxe4 {[%clk 0:00:13]} 40.
Nfg3+ {[%clk 0:00:14.3]} 40... Ke3 {[%clk 0:00:12.8]} 41. Re8 {[%clk 0:00:13.9]}
41... e4 {[%clk 0:00:12.6]} 42. Rxe4+ {[%clk 0:00:13.5]} 42... Kf2 {[%clk
0:00:13]} 43. Kc2 {[%clk 0:00:13.3]} 43... Re3 {[%clk 0:00:13.1]} 44. Rxe3
{[%clk 0:00:13]} 44... Kxe3 {[%clk 0:00:14]} 45. Kd1 {[%clk 0:00:13.1]} 45...
Kf2 {[%clk 0:00:12.6]} 46. Kd2 {[%clk 0:00:13.3]} 46... Bg2 {[%clk 0:00:12.7]}
47. b4 {[%clk 0:00:13]} 47... Bf3 {[%clk 0:00:12.7]} 48. c5 {[%clk 0:00:13.5]}
48... a6 {[%clk 0:00:12.5]} 49. Nf5 {[%clk 0:00:10.7]} 49... Bxe2 {[%clk
0:00:10.9]} 50. b3 {[%clk 0:00:06.2]} 50... Bf3 {[%clk 0:00:10.8]} 51. Ne3
{[%clk 0:00:04.9]} 51... g3 {[%clk 0:00:09.2]} 52. b5 {[%clk 0:00:04.8]} 52...
axb5 {[%clk 0:00:07.7]} 0-1

[Event "*** Titled Tuesday Blitz"]
[Site "Chess.com"]
[Date "2021.04.06"]
[Round "8"]
[White "ellennilssen"]
[Black "mary-sanna"]
[Result "0-1"]
[WhiteElo "2224"]
[BlackElo "2119"]
[TimeControl "180+1"]
[EndTime "11:30:06 PDT"]
[Termination "mary-sanna won on time"]

1. Nf3 {[%clk 0:03:00.9]} 1... d5 {[%clk 0:02:57.8]} 2. b3 {[%clk 0:02:58.7]}
2... Nf6 {[%clk 0:02:56.1]} 3. Bb2 {[%clk 0:02:57.8]} 3... Bf5 {[%clk
0:02:51.6]} 4. e3 {[%clk 0:02:57.6]} 4... e6 {[%clk 0:02:51.3]} 5. c4 {[%clk
0:02:57.2]} 5... c6 {[%clk 0:02:49.9]} 6. Nc3 {[%clk 0:02:56.8]} 6... h6 {[%clk
0:02:49.2]} 7. Be2 {[%clk 0:02:54.7]} 7... Bd6 {[%clk 0:02:49]} 8. d3 {[%clk
0:02:53]} 8... O-O {[%clk 0:02:47.8]} 9. Qc2 {[%clk 0:02:51.9]} 9... Bg6 {[%clk
0:02:17.5]} 10. O-O {[%clk 0:02:33.8]} 10... Nbd7 {[%clk 0:02:16.1]} 11. Rad1
{[%clk 0:02:23.9]} 11... Qc7 {[%clk 0:02:08.6]} 12. h3 {[%clk 0:02:15.9]} 12...
Ne5 {[%clk 0:02:07.7]} 13. Nxe5 {[%clk 0:02:12.3]} 13... Bxe5 {[%clk 0:02:07.3]}
14. cxd5 {[%clk 0:02:11.6]} 14... exd5 {[%clk 0:02:04.3]} 15. Rc1 {[%clk
0:02:01.2]} 15... Qe7 {[%clk 0:02:00.4]} 16. Nb1 {[%clk 0:01:53.7]} 16... Bd6
{[%clk 0:01:54.1]} 17. Nd2 {[%clk 0:01:53.3]} 17... Rfe8 {[%clk 0:01:51.1]} 18.
Nf3 {[%clk 0:01:53.4]} 18... Nd7 {[%clk 0:01:47.4]} 19. Bc3 {[%clk 0:01:51.4]}
19... Ne5 {[%clk 0:01:43.5]} 20. Nxe5 {[%clk 0:01:51.8]} 20... Bxe5 {[%clk
0:01:43.4]} 21. Qb2 {[%clk 0:01:48.4]} 21... Qf6 {[%clk 0:01:40.9]} 22. Bxe5
{[%clk 0:01:39.9]} 22... Qxe5 {[%clk 0:01:38.8]} 23. Qxe5 {[%clk 0:01:38.1]}
23... Rxe5 {[%clk 0:01:39.7]} 24. Rc5 {[%clk 0:01:33.1]} 24... Rae8 {[%clk
0:01:28.8]} 25. b4 {[%clk 0:01:17.6]} 25... d4 {[%clk 0:01:26.1]} 26. e4 {[%clk
0:01:13.9]} 26... f5 {[%clk 0:01:20.1]} 27. f3 {[%clk 0:01:13.6]} 27... Rxc5
{[%clk 0:01:06.8]} 28. bxc5 {[%clk 0:01:12.5]} 28... fxe4 {[%clk 0:01:03.1]} 29.
fxe4 {[%clk 0:01:13.4]} 29... Bf7 {[%clk 0:01:02.4]} 30. a3 {[%clk 0:01:11.3]}
30... Re5 {[%clk 0:00:59.8]} 31. Rc1 {[%clk 0:01:09.9]} 31... Kf8 {[%clk
0:00:57.7]} 32. Bg4 {[%clk 0:01:03.3]} 32... Be6 {[%clk 0:00:51.8]} 33. Bf3
{[%clk 0:00:51.2]} 33... Bc8 {[%clk 0:00:46]} 34. Rc4 {[%clk 0:00:45.4]} 34...
Ke7 {[%clk 0:00:42.8]} 35. Kf2 {[%clk 0:00:42.6]} 35... g5 {[%clk 0:00:39.7]}
36. Kg3 {[%clk 0:00:42.1]} 36... Kf6 {[%clk 0:00:37.1]} 37. h4 {[%clk 0:00:42]}
37... gxh4+ {[%clk 0:00:32.4]} 38. Kxh4 {[%clk 0:00:42.9]} 38... Rg5 {[%clk
0:00:31.4]} 39. Rxd4 {[%clk 0:00:31.8]} 39... Rxc5 {[%clk 0:00:30.4]} 40. Rd8
{[%clk 0:00:32.4]} 40... Be6 {[%clk 0:00:27.3]} 41. d4 {[%clk 0:00:32.1]} 41...
Rc3 {[%clk 0:00:15.8]} 42. d5 {[%clk 0:00:32.5]} 42... cxd5 {[%clk 0:00:15.6]}
43. exd5 {[%clk 0:00:33.4]} 43... Bf7 {[%clk 0:00:15.8]} 44. d6 {[%clk
0:00:30.4]} 44... Rxa3 {[%clk 0:00:15.4]} 45. d7 {[%clk 0:00:28]} 45... Ke7
{[%clk 0:00:15.2]} 46. Rf8 {[%clk 0:00:24.2]} 46... Rd3 {[%clk 0:00:13.4]} 47.
Ra8 {[%clk 0:00:07.6]} 47... Rxd7 {[%clk 0:00:11.9]} 48. Rxa7 {[%clk 0:00:08.2]}
48... b6 {[%clk 0:00:11.4]} 49. Ra8 {[%clk 0:00:04.5]} 49... b5 {[%clk
0:00:10.3]} 50. Rb8 {[%clk 0:00:04.5]} 50... Bc4 {[%clk 0:00:08.5]} 51. Bc6
{[%clk 0:00:05.1]} 51... Rd4+ {[%clk 0:00:07.7]} 52. Kg3 {[%clk 0:00:05.6]}
52... Rd3+ {[%clk 0:00:07.6]} 53. Kh2 {[%clk 0:00:06]} 53... Rd2 {[%clk
0:00:07.3]} 54. Bxb5 {[%clk 0:00:04.4]} 54... Bd5 {[%clk 0:00:04.5]} 0-1

[Event "*** Titled Tuesday Blitz"]
[Site "Chess.com"]
[Date "2021.04.06"]
[Round "8"]
[White "mac0504"]
[Black "Camels1981"]
[Result "1/2-1/2"]
[WhiteElo "2522"]
[BlackElo "2386"]
[TimeControl "180+1"]
[EndTime "11:30:07 PDT"]
[Termination "Game drawn by stalemate"]

1. e4 {[%clk 0:03:00.9]} 1... c5 {[%clk 0:02:58]} 2. Nf3 {[%clk 0:03:00.9]} 2...
e6 {[%clk 0:02:57.8]} 3. d4 {[%clk 0:03:01.8]} 3... cxd4 {[%clk 0:02:58.7]} 4.
Nxd4 {[%clk 0:03:02.7]} 4... Nc6 {[%clk 0:02:58.9]} 5. Nc3 {[%clk 0:03:03.1]}
5... Qc7 {[%clk 0:02:59.1]} 6. Qd3 {[%clk 0:03:03.1]} 6... Nf6 {[%clk
0:02:50.8]} 7. Ndb5 {[%clk 0:03:02.9]} 7... Qb8 {[%clk 0:02:50]} 8. Qg3 {[%clk
0:03:03.5]} 8... d6 {[%clk 0:02:25.3]} 9. Be3 {[%clk 0:03:03.5]} 9... a6 {[%clk
0:01:51.7]} 10. Nd4 {[%clk 0:03:03.6]} 10... Ne5 {[%clk 0:01:48.6]} 11. Be2
{[%clk 0:02:59.6]} 11... b5 {[%clk 0:01:48.1]} 12. f4 {[%clk 0:02:55.6]} 12...
Nc4 {[%clk 0:01:47.1]} 13. Bxc4 {[%clk 0:02:54.5]} 13... bxc4 {[%clk 0:01:47]}
14. O-O-O {[%clk 0:02:51.3]} 14... Bb7 {[%clk 0:01:17.4]} 15. e5 {[%clk
0:02:05.7]} 15... Ne4 {[%clk 0:01:16.6]} 16. Nxe4 {[%clk 0:02:03]} 16... Bxe4
{[%clk 0:01:17.5]} 17. exd6 {[%clk 0:01:57.3]} 17... c3 {[%clk 0:01:10.3]} 18.
Nb3 {[%clk 0:01:42.3]} 18... cxb2+ {[%clk 0:01:02]} 19. Kxb2 {[%clk 0:01:43.2]}
19... Bxd6 {[%clk 0:00:48.8]} 20. Qxg7 {[%clk 0:01:41.7]} 20... Rf8 {[%clk
0:00:46]} 21. Qd4 {[%clk 0:01:41.3]} 21... Bd5 {[%clk 0:00:38.2]} 22. c4 {[%clk
0:01:41]} 22... a5 {[%clk 0:00:30.8]} 23. cxd5 {[%clk 0:01:35.9]} 23... a4
{[%clk 0:00:30.7]} 24. dxe6 {[%clk 0:01:35.8]} 24... axb3 {[%clk 0:00:29.3]} 25.
axb3 {[%clk 0:01:35.4]} 25... Ba3+ {[%clk 0:00:21]} 26. Kc2 {[%clk 0:01:34.8]}
26... Qc7+ {[%clk 0:00:21.1]} 27. Kb1 {[%clk 0:01:29]} 27... fxe6 {[%clk
0:00:20.9]} 28. Qe4 {[%clk 0:01:23.2]} 28... Ra6 {[%clk 0:00:12.5]} 29. Rd4
{[%clk 0:01:01.9]} 29... Qc3 {[%clk 0:00:05.8]} 30. Qc2 {[%clk 0:00:58.5]} 30...
Qxe3 {[%clk 0:00:05.7]} 31. Rhd1 {[%clk 0:00:20.6]} 31... Be7 {[%clk 0:00:05.1]}
32. Qc8+ {[%clk 0:00:18.4]} 32... Kf7 {[%clk 0:00:05.1]} 33. Qxa6 {[%clk
0:00:18.8]} 33... Qxb3+ {[%clk 0:00:05.3]} 34. Ka1 {[%clk 0:00:18]} 34... Bf6
{[%clk 0:00:05.2]} 35. Qa7+ {[%clk 0:00:11.7]} 35... Kg6 {[%clk 0:00:04.6]} 36.
Qa2 {[%clk 0:00:11.8]} 36... Qc3+ {[%clk 0:00:04.3]} 37. Qb2 {[%clk 0:00:12]}
37... Ra8+ {[%clk 0:00:04.1]} 38. Kb1 {[%clk 0:00:12.5]} 38... Qxb2+ {[%clk
0:00:03.3]} 39. Kxb2 {[%clk 0:00:13.4]} 39... Ra4 {[%clk 0:00:03.8]} 40. Kc3
{[%clk 0:00:13.6]} 40... Rxd4 {[%clk 0:00:02.9]} 41. Rxd4 {[%clk 0:00:13.6]}
41... Kf5 {[%clk 0:00:03.6]} 42. Kd3 {[%clk 0:00:13.9]} 42... Bxd4 {[%clk
0:00:03.5]} 43. Kxd4 {[%clk 0:00:14.8]} 43... Kxf4 {[%clk 0:00:04.4]} 44. g3+
{[%clk 0:00:13.6]} 44... Kf5 {[%clk 0:00:04.8]} 45. Ke3 {[%clk 0:00:12.9]} 45...
e5 {[%clk 0:00:05]} 46. h3 {[%clk 0:00:12.7]} 46... h5 {[%clk 0:00:05.5]} 47.
Kf3 {[%clk 0:00:09.3]} 47... e4+ {[%clk 0:00:05]} 48. Ke3 {[%clk 0:00:09.9]}
48... Ke5 {[%clk 0:00:05.3]} 49. g4 {[%clk 0:00:10.8]} 49... h4 {[%clk
0:00:03.9]} 50. g5 {[%clk 0:00:09]} 50... Kf5 {[%clk 0:00:04.3]} 51. g6 {[%clk
0:00:09.7]} 51... Kxg6 {[%clk 0:00:04.1]} 52. Kxe4 {[%clk 0:00:10.6]} 52... Kh5
{[%clk 0:00:04.2]} 53. Kf5 {[%clk 0:00:10.7]} 53... Kh6 {[%clk 0:00:04.7]} 54.
Kg4 {[%clk 0:00:11.6]} 54... Kh7 {[%clk 0:00:05.5]} 55. Kxh4 {[%clk 0:00:12.5]}
55... Kh8 {[%clk 0:00:06.3]} 56. Kg5 {[%clk 0:00:13.4]} 56... Kg8 {[%clk
0:00:07.2]} 57. h4 {[%clk 0:00:14.3]} 57... Kh8 {[%clk 0:00:08.1]} 58. h5 {[%clk
0:00:15.2]} 58... Kg8 {[%clk 0:00:09]} 59. h6 {[%clk 0:00:16.1]} 59... Kh8
{[%clk 0:00:09.9]} 60. Kg6 {[%clk 0:00:17]} 60... Kg8 {[%clk 0:00:10.8]} 61. h7+
{[%clk 0:00:17.9]} 61... Kh8 {[%clk 0:00:11.7]} 62. Kh6 {[%clk 0:00:18.8]}
1/2-1/2